bitfinex-derivatives/quotes_SOLF0:USTF0_20250606
["timestamp","ask_amount","ask_price","bid_price","bid_amount"]
[1749195823496,4.86125842,147.17,147.16,6.7922]
[1749195823701,0.04907257,147.17,147.16,6.7922]
[1749195823906,4.86167357,147.17,147.16,6.7922]
[1749195824107,0.04907257,147.17,147.16,6.7922]
[1749195824295,4.86167357,147.17,147.16,6.7922]
[1749195824494,0.04907257,147.17,147.16,6.7922]
[1749195825607,4.86164989,147.17,147.16,6.7922]
[1749195825809,4.86164989,147.17,147.14,3.15225649]
[1749195826002,4.81862067,147.16,147.14,3.15225649]
[1749195826305,0.04907257,147.17,147.14,3.15225649]
[1749195826506,4.81862067,147.16,147.14,9.94515649]
[1749195826809,6.84117257,147.17,147.14,9.94515649]
[1749195827007,4.8186405,147.16,147.14,9.94515649]
[1749195827307,6.84117257,147.17,147.14,9.94515649]
[1749195827903,6.7922,147.16,147.14,9.94515649]
[1749195828205,4.81865581,147.15,147.14,0.04937176]
[1749195828406,6.7935,147.14,147.11,3.10288473]
[1749195828707,4.81870562,147.13,147.11,6.7941]
[1749195829012,9.89638473,147.14,147.1,3.10288473]
[1749195829410,4.87284014,147.13,147.11,6.8395483]
[1749195829609,0.04324959,147.13,147.11,0.0453483]
[1749195830807,0.04324959,147.13,147.12,6.7941]
[1749195831006,4.8820798,147.13,147.12,6.7941]
[1749195831205,0.04324959,147.13,147.12,6.7941]
[1749195831608,4.88207974,147.13,147.12,6.7941]
[1749195832004,14.77856447,147.13,147.11,6.8397483]
[1749195832209,9.93973432,147.13,147.11,6.8397483]
[1749195832513,4.84803838,147.12,147.11,6.8397483]
[1749195832810,9.93973432,147.13,147.11,6.8397483]
[1749195835712,6.83684959,147.13,147.11,6.8397483]
[1749195837617,0.04324959,147.13,147.11,6.8397483]
[1749195838213,6.83714959,147.13,147.11,6.8397483]
[1749195838713,0.04324959,147.13,147.11,6.8397483]
[1749195840214,0.04324959,147.13,147.12,6.7941]
[1749195840416,4.86542993,147.13,147.12,6.7941]
[1749195841210,4.86412688,147.13,147.12,6.7941]
[1749195841415,0.04324959,147.13,147.12,6.7941]
[1749195841616,4.86380316,147.13,147.12,6.7941]
[1749195841916,4.86357492,147.13,147.12,6.7941]
[1749195842209,4.86381457,147.13,147.11,6.8397483]
[1749195842414,4.82044942,147.12,147.11,6.8397483]
[1749195842614,0.04324959,147.13,147.11,6.8397483]
[1749195843917,0.04324959,147.13,147.12,6.7941]
[1749195844216,4.86338749,147.13,147.12,6.7941]
[1749195844417,4.86326906,147.13,147.12,6.7941]
[1749195845119,4.86322105,147.13,147.12,6.7941]
[1749195845418,4.86316773,147.13,147.12,6.7941]
[1749195845614,4.85907751,147.13,147.12,6.7941]
[1749195845820,9.93993432,147.13,147.11,6.8396483]
[1749195846017,47.83610295,147.12,147.06,17.02369473]
[1749195846319,3.10288473,147.07,147.06,13.92081]
[1749195846515,7.91451307,147.07,147.06,20.71741]
[1749195846715,3.10288473,147.07,147.06,20.71741]
[1749195846914,3.10288473,147.07,147.06,13.92081]
[1749195847111,14.71093138,147.07,147.06,13.92081]
[1749195847321,14.71031138,147.07,147.06,13.92081]
[1749195847516,14.71026663,147.07,147.06,13.92081]
[1749195847718,7.91398463,147.07,147.06,20.71761]
[1749195848116,3.10288473,147.07,147.06,20.71761]
[1749195848314,7.91360729,147.07,147.06,20.71761]
[1749195848623,3.10288473,147.07,147.06,20.71761]
[1749195848822,7.91329223,147.07,147.06,20.71761]
[1749195849212,4.8104075,147.07,147.06,20.71761]
[1749195849416,46.13283041,147.08,147.06,20.71761]
[1749195850020,41.28009119,147.08,147.06,20.71761]
[1749195850220,39.33673041,147.08,147.07,6.7964]
[1749195850417,44.12013303,147.08,147.07,6.7964]
[1749195850621,44.12013123,147.08,147.07,6.7964]
[1749195850821,39.33673041,147.08,147.07,6.7964]
[1749195851221,44.11062045,147.08,147.07,6.7964]
[1749195851422,44.11062307,147.08,147.07,6.7964]
[1749195851618,44.11075639,147.08,147.07,6.7964]
[1749195851814,39.33673041,147.08,147.07,6.7964]
[1749195852014,44.11074955,147.08,147.07,6.7964]
[1749195852223,39.33673041,147.08,147.07,6.7964]
[1749195852825,44.11011694,147.08,147.07,6.7964]
[1749195853127,44.10967125,147.08,147.07,6.7964]
[1749195853327,39.33673041,147.08,147.07,6.7964]
[1749195853516,34.48399119,147.08,147.07,6.7964]
[1749195854824,0.04399119,147.08,147.07,6.7964]
[1749195855029,0.04399119,147.08,147.07,11.64913922]
[1749195855932,0.04399119,147.08,147.07,6.7964]
[1749195869546,0.04399119,147.08,147.07,11.64913922]
[1749195874850,0.04399119,147.08,147.07,6.7964]
[1749195880154,9.119e-05,147.08,147.07,6.7964]
[1749195880355,34.42,147.15,147.14,6.7931]
[1749195880851,4.78939011,147.15,147.14,6.7931]
[1749195881056,10.3161845,147.17,147.14,6.7931]
[1749195881257,4.78937129,147.16,147.15,6.7927]
[1749195881556,4.78909046,147.16,147.14,0.04817172]
[1749195881757,6.83715133,147.17,147.14,0.04817172]
[1749195882459,6.83715133,147.17,147.14,6.84107172]
[1749195882857,6.7923,147.16,147.14,6.84107172]
[1749195887459,6.83715133,147.17,147.14,6.84107172]
[1749195889663,0.04515133,147.17,147.15,6.7926]
[1749195891061,0.04515133,147.17,147.16,6.7922]
[1749195893961,0.04515133,147.17,147.15,6.7925]
[1749195895166,6.83705133,147.17,147.15,6.7925]
[1749195897461,0.04515133,147.17,147.15,6.7925]
[1749195897965,6.83695133,147.17,147.15,6.7925]
[1749195898466,0.04515133,147.17,147.15,6.7925]
[1749195899262,0.04515133,147.17,147.14,0.04817172]
[1749195899567,4.85273922,147.16,147.14,0.04817172]
[1749195899967,6.7927,147.15,147.14,0.04817172]
[1749195900769,34.40515133,147.17,147.14,0.04817172]
[1749195901167,4.85273922,147.16,147.14,0.04817172]
[1749195902064,6.7927,147.15,147.14,0.04817172]
[1749195903567,0.04515133,147.17,147.14,0.04817172]
[1749195904165,6.83695133,147.17,147.14,6.84107172]
[1749195904566,0.04515133,147.17,147.14,0.04817172]
[1749195904967,0.04515133,147.17,147.15,6.7925]
[1749195905666,0.04515133,147.17,147.16,6.7922]
[1749195906570,0.04515133,147.17,147.15,6.7924]
[1749195906873,4.89789055,147.17,147.14,0.04817172]
[1749195907368,6.7927,147.15,147.14,0.04817172]
[1749195908273,11.58713606,147.16,147.14,0.04817172]
[1749195908571,4.89789055,147.17,147.14,0.04817172]
[1749195908768,6.7927,147.15,147.14,0.04817172]
[1749195909273,6.7925,147.16,147.14,0.04817172]
[1749195909571,6.7925,147.16,147.14,6.84127172]
[1749195910172,6.7927,147.15,147.14,0.04817172]
[1749195910773,6.7924,147.16,147.14,0.04817172]
[1749195911069,6.7924,147.16,147.14,6.84107172]
[1749195914776,6.7924,147.16,147.14,0.04817172]
[1749195915674,6.7924,147.16,147.14,6.84127172]
[1749195916976,11.61054489,147.15,147.14,0.04817172]
[1749195917179,16.46328411,147.15,147.14,0.04817172]
[1749195917373,11.64543922,147.15,147.14,0.04817172]
[1749195917775,16.46291943,147.15,147.14,0.04817172]
[1749195917973,11.64543922,147.15,147.14,0.04817172]
[1749195918372,16.46329137,147.15,147.14,0.04817172]
[1749195918878,11.64543922,147.15,147.14,0.04817172]
[1749195919076,6.7927,147.15,147.14,0.04817172]
[1749195919580,4.81795623,147.15,147.14,0.04817172]
[1749195920575,6.83695133,147.17,147.14,0.04817172]
[1749195920882,4.81807085,147.15,147.14,0.04817172]
[1749195921281,0.04515133,147.17,147.14,0.04817172]
[1749195921482,11.61123396,147.16,147.14,0.04817172]
[1749195921780,0.04515133,147.17,147.14,0.04817172]
[1749195921981,4.8126294,147.16,147.14,0.04817172]
[1749195922179,4.8126294,147.15,147.14,0.04817172]
[1749195922581,4.81257125,147.15,147.14,0.04817172]
[1749195922984,4.81266936,147.15,147.14,0.04817172]
[1749195923282,6.7922,147.16,147.14,0.04817172]
[1749195923783,4.81257772,147.15,147.14,6.84127172]
[1749195923982,6.83705133,147.17,147.14,0.04817172]
[1749195924183,4.81256107,147.16,147.15,6.7927]
[1749195924480,4.81256107,147.16,147.14,0.04817172]
[1749195924684,4.81256107,147.15,147.14,0.04817172]
[1749195924884,6.7922,147.16,147.14,6.84097172]
[1749195925283,4.81464225,147.15,147.14,6.84097172]
[1749195926084,11.60732455,147.15,147.14,0.04817172]
[1749195926684,11.60819696,147.15,147.14,0.04817172]
[1749195926884,6.7927,147.15,147.14,0.04817172]
[1749195927079,11.60830572,147.15,147.14,0.04817172]
[1749195927284,11.60625081,147.15,147.14,0.04817172]
[1749195927480,6.7927,147.15,147.14,0.04817172]
[1749195927686,11.60492004,147.15,147.14,0.04817172]
[1749195928188,11.60483675,147.15,147.14,0.04817172]
[1749195928384,11.6060421,147.15,147.14,0.04817172]
[1749195928686,11.60622306,147.15,147.14,0.04817172]
[1749195929186,11.6065975,147.15,147.14,0.04817172]
[1749195929487,11.64523922,147.16,147.14,6.84127172]
[1749195929685,4.81575731,147.15,147.14,0.04817172]
[1749195930083,4.81575166,147.15,147.14,0.04817172]
[1749195930382,4.81575712,147.15,147.14,0.04817172]
[1749195930586,4.81584712,147.15,147.14,0.04817172]
[1749195930979,4.81576282,147.15,147.14,6.84107172]
[1749195931184,11.64523922,147.16,147.14,6.84107172]
[1749195931787,11.60846628,147.15,147.14,0.04817172]
[1749195932182,6.7927,147.15,147.14,0.04817172]
[1749195932691,11.60836793,147.15,147.14,0.04817172]
[1749195932990,11.60825206,147.15,147.14,0.04817172]
[1749195933187,6.7927,147.15,147.14,0.04817172]
[1749195933389,6.7927,147.15,147.07,38.7468]
[1749195933390,6.7939,147.13,147.07,38.7468]
[1749195933592,11.64663922,147.13,147.07,38.7468]
[1749195933790,11.64663922,147.13,147.1,6.7946]
[1749195933991,4.81357436,147.12,147.1,6.7946]
[1749195934186,4.81373475,147.11,147.07,38.7468]
[1749195934392,0.05144044,147.1,147.07,43.59953922]
[1749195934789,0.05144044,147.1,147.09,4.85273922]
[1749195934986,0.05144044,147.1,147.09,11.64813922]
[1749195935386,0.05144044,147.1,147.09,6.7954]
[1749195936394,0.05144044,147.1,147.09,11.64243585]
[1749195940604,0.05144044,147.1,147.09,11.64274806]
[1749195942406,0.05144044,147.1,147.09,6.7954]
[1749195948411,44.64195841,147.1,147.06,13.92081]
[1749195948615,4.85298071,147.07,147.06,13.92081]
[1749195948813,4.85298071,147.07,146.99,51.24769454]
[1749195949008,0.05227268,147.04,146.99,36.4283]
[1749195949214,0.05227268,147.04,146.99,34.28]
[1749195949414,6.85027268,147.04,146.99,34.28]
[1749195949814,6.85027268,147.04,147.01,6.7991]
[1749195950016,4.79209815,147.03,147.01,6.7991]
[1749195950316,6.85027268,147.04,147.01,6.7991]
[1749195950620,11.59039728,147.03,146.99,34.28]
[1749195950815,0.05227268,147.04,146.99,34.28]
[1749195951017,4.79142339,147.03,147.01,6.7988]
[1749195951216,6.85027268,147.04,147.01,6.7988]
[1749195951416,4.79083134,147.03,147.01,6.7988]
[1749195951618,6.85027268,147.04,147.02,6.7987]
[1749195951811,4.79026438,147.03,147.02,6.7987]
[1749195952014,4.79020685,147.03,146.99,34.28]
[1749195952218,6.85027268,147.04,147.01,6.7987]
[1749195952522,4.79016692,147.03,147.01,6.7987]
[1749195952711,6.85027268,147.04,147.01,6.7987]
[1749195952916,4.7902169,147.03,147.01,6.7987]
[1749195953117,6.85027268,147.04,147.02,6.7987]
[1749195953417,4.79019472,147.03,147.02,6.7987]
[1749195953923,4.79056282,147.03,146.99,34.28]
[1749195954122,6.85027268,147.04,146.99,34.28]
[1749195955120,0.05227268,147.04,147.02,6.7984]
[1749195956725,6.85007268,147.04,147.02,6.7984]
[1749195958616,6.85007268,147.04,146.97,4.85298071]
[1749195958822,4.85298071,147.03,147.01,6.7989]
[1749195960123,4.85298071,147.03,147.02,6.7987]
[1749195961630,4.85298071,147.03,147.01,6.7988]
[1749195962631,11.65118071,147.03,147.01,6.7988]
[1749195962925,39.15298071,147.03,146.96,34.3]
[1749195963127,0.0517597,147.01,146.96,34.3]
[1749195963730,6.8509597,147.01,146.96,34.3]
[1749195964231,0.0517597,147.01,146.99,6.7996]
[1749195965323,6.8511597,147.01,146.98,6.8001]
[1749195965527,4.85298071,147.0,146.95,2.1483]
[1749195965726,4.85298071,147.0,146.98,6.8001]
[1749195965931,4.85298071,147.0,146.95,2.1483]
[1749195966131,0.0517597,147.01,146.95,2.1483]
[1749195966334,6.8509597,147.01,146.95,7.00128071]
[1749195966728,6.8509597,147.01,146.95,2.1483]
[1749195966940,6.8509597,147.01,146.98,6.8002]
[1749195967228,6.8509597,147.01,146.95,2.1483]
[1749195967733,0.0517597,147.01,146.96,4.85298071]
[1749195968126,0.0517597,147.01,146.93,425.62]
[1749195968332,0.0517597,147.01,146.94,4.85298071]
[1749195968528,0.0517597,147.01,146.94,7.16618071]
[1749195969834,0.0517597,147.01,147.0,6.7996]
[1749195974334,0.0517597,147.01,146.99,6.7999]
[1749195974545,0.0517597,147.01,146.95,2.1193]
[1749195974732,6.8512597,147.01,146.95,2.1193]
[1749195974935,0.0517597,147.01,146.95,2.1193]
[1749195975538,0.0517597,147.01,147.0,6.7996]
[1749195980050,0.0517597,147.01,146.95,6.97228071]
[1749195980241,4.90474041,147.01,146.95,6.97228071]
[1749195980644,4.90474041,147.01,146.99,6.7998]
[1749195982949,4.90474041,147.01,146.95,6.97228071]
[1749195983248,4.90474041,147.01,147.0,6.7996]
[1749195983450,0.0517597,147.01,147.0,6.7996]
[1749195985351,6.8508597,147.01,146.99,6.7999]
[1749195985551,4.85298071,147.0,146.94,2.3132]
[1749195985850,11.65268071,147.0,146.94,2.3132]
[1749195986447,11.65268071,147.0,146.98,6.8003]
[1749195986648,4.85298071,147.0,146.98,6.8003]
[1749195987453,4.85298071,147.0,146.99,6.8001]
[1749195989255,9.52645526,147.0,146.94,7.16618071]
[1749195989451,4.85298071,147.0,146.94,7.16618071]
[1749195990857,4.85298071,147.0,146.99,6.8001]
[1749195991060,9.52499799,147.0,146.99,6.8001]
[1749195991355,4.85298071,147.0,146.99,6.8001]
[1749195991855,9.52515946,147.0,146.99,6.8001]
[1749195992052,4.85298071,147.0,146.99,6.8001]
[1749195993055,9.51569147,147.0,146.99,6.8001]
[1749195993254,9.51567483,147.0,146.99,6.8001]
[1749195993458,9.51587364,147.0,146.99,6.8001]
[1749195993958,9.51045225,147.0,146.99,6.8001]
[1749195994560,9.51134933,147.0,146.99,6.8001]
[1749195994862,9.5116945,147.0,146.99,6.8001]
[1749195995057,4.85298071,147.0,146.99,6.8001]
[1749195995257,9.51214688,147.0,146.99,6.8001]
[1749195995560,11.65258071,147.0,146.98,6.8003]
[1749195995760,4.6625795,146.99,146.94,15.59813904]
[1749195996059,4.85298071,147.0,146.94,15.59813904]
[1749195996060,0.04924382,146.98,146.94,7.16618071]
[1749195996251,0.04924382,146.98,146.94,2.3132]
[1749195996458,0.04924382,146.98,146.94,10.74515833]
[1749195996651,0.04924382,146.98,146.97,6.801]
[1749196010171,3.10751495,147.02,147.01,6.7988]
[1749196010373,7.79641706,147.02,146.96,11.5398773]
[1749196010567,3.10791897,147.0,146.96,3.10791897]
[1749196010966,3.10791897,147.0,146.99,6.7998]
[1749196011565,7.7962213,147.0,146.99,6.7998]
[1749196011966,3.10832392,147.0,146.99,6.7998]
[1749196012173,3.15798622,147.01,147.0,6.7996]
[1749196012569,7.84594699,147.01,147.0,6.7996]
[1749196012771,12.53379144,147.01,147.0,6.7996]
[1749196012973,12.53385125,147.01,147.0,6.7996]
[1749196013368,7.84583455,147.01,147.0,6.7996]
[1749196013769,12.53380472,147.01,147.0,6.7996]
[1749196013969,7.84583455,147.01,147.0,6.7996]
[1749196014169,12.5389197,147.01,147.0,6.7996]
[1749196014470,12.53902421,147.01,147.0,6.7996]
[1749196014665,7.84583455,147.01,147.0,6.7996]
[1749196014869,9.43073119,147.01,147.0,6.7996]
[1749196015070,9.43131386,147.01,147.0,6.7996]
[1749196015271,9.43270681,147.01,147.0,6.7996]
[1749196015578,9.4327165,147.01,147.0,6.7996]
[1749196015874,4.73761423,147.01,147.0,9.9062261]
[1749196018682,4.73761423,147.01,147.0,6.7996]
[1749196018980,4.73761423,147.01,147.0,9.9062261]
[1749196019575,4.73761423,147.01,147.0,6.7996]
[1749196019776,4.73761423,147.01,147.0,9.9062261]
[1749196019982,4.73761423,147.01,147.0,6.7996]
[1749196020480,4.73761423,147.01,147.0,9.9062261]
[1749196023485,4.73761423,147.01,146.99,6.7998]
[1749196023679,7.84424033,147.01,146.98,0.04933323]
[1749196024288,7.84424033,147.01,147.0,6.7996]
[1749196024487,4.73761423,147.01,147.0,6.7996]
[1749196032085,4.73761423,147.01,147.0,9.9062261]
[1749196032591,4.73761423,147.01,147.0,6.7996]
[1749196034487,12.65265948,147.13,147.0,3.1066261]
[1749196034690,37.3466261,147.1,147.08,6.7959]
[1749196034991,3.1066261,147.11,147.07,3.1066261]
[1749196035183,3.1066261,147.12,147.08,3.1066261]
[1749196035383,37.3466261,147.13,147.09,3.1066261]
[1749196035584,0.04321562,147.12,147.1,0.04792846]
[1749196036090,0.04321562,147.12,147.1,3.15455456]
[1749196036285,0.04321562,147.12,147.11,6.7945]
[1749196037989,0.04321562,147.12,147.1,0.04792846]
[1749196038587,6.83751562,147.12,147.1,0.04792846]
[1749196043091,0.04321562,147.12,147.1,0.04792846]
[1749196043502,6.7945,147.11,147.1,0.04792846]
[1749196043800,4.84846289,147.11,147.03,34.22]
[1749196044094,4.84846289,147.07,147.05,6.7973]
[1749196044898,4.89827555,147.07,147.05,6.84397827]
[1749196045502,11.69467555,147.07,147.05,6.84397827]
[1749196046400,11.69467555,147.07,147.05,0.04667827]
[1749196048596,11.69467555,147.07,147.05,6.84397827]
[1749196050099,4.89827555,147.07,147.05,0.04667827]
[1749196050699,11.69487555,147.07,147.05,0.04667827]
[1749196051901,6.7968,147.06,147.05,0.04667827]
[1749196052600,6.798,147.04,147.01,6.799]
[1749196052801,4.84846289,147.03,147.01,6.799]
[1749196053605,4.89952215,147.03,147.01,6.799]
[1749196053904,4.89952215,147.03,146.97,34.22]
[1749196053905,0.05105926,147.03,147.02,6.7987]
[1749196058405,0.05105926,147.03,147.01,6.799]
[1749196059504,6.84935926,147.03,147.01,6.799]
[1749196059703,0.05105926,147.03,147.01,6.799]
[1749196061103,4.89952215,147.03,146.97,42.65355716]
[1749196061300,4.89952215,147.03,146.97,34.22]
[1749196061606,11.69792215,147.03,147.0,6.7993]
[1749196062502,6.7987,147.02,147.0,6.7993]
[1749196064605,6.7991,147.01,146.99,6.8]
[1749196065811,39.11952215,147.03,146.98,6.8003]
[1749196066011,4.84846289,147.01,146.98,6.8003]
[1749196066214,4.84846289,147.01,146.99,6.7999]
[1749196066914,11.64786289,147.01,146.99,6.7999]
[1749196067105,4.84846289,147.01,146.99,6.7999]
[1749196067301,4.84846289,147.01,147.0,6.7999]
[1749196067503,4.84846289,147.01,146.95,8.43355716]
[1749196068107,0.05161723,147.02,146.96,4.84846289]
[1749196068313,0.04694088,147.0,146.96,4.84846289]
[1749196068818,0.04694088,147.0,146.99,6.8001]
[1749196079817,0.04694088,147.0,146.98,6.8004]
[1749196080318,0.04694088,147.0,146.96,34.2]
[1749196080618,0.04694088,147.0,146.99,6.8001]
[1749196081216,39.04846289,147.06,146.98,4.84846289]
[1749196081416,39.04846289,147.06,146.99,2.3018]
[1749196082320,39.04846289,147.06,147.02,6.7987]
[1749196082321,0.04684919,147.04,147.02,6.7987]
[1749196082709,0.04684919,147.04,147.01,0.04511238]
[1749196082710,4.89531208,147.04,147.01,0.04511238]
[1749196082914,4.84846289,147.02,147.01,0.04511238]
[1749196083510,11.64716289,147.02,147.01,0.04511238]
[1749196083716,4.84846289,147.02,147.01,0.04511238]
[1749196084522,11.64716289,147.02,147.01,0.04511238]
[1749196086723,14.46374892,147.02,147.01,0.04511238]
[1749196086919,19.0574398,147.02,147.01,0.04511238]
[1749196087521,19.0569395,147.02,147.01,0.04511238]
[1749196087716,11.64716289,147.02,147.01,0.04511238]
[1749196087920,19.05728209,147.02,147.01,0.04511238]
[1749196088120,19.05713758,147.02,147.01,0.04511238]
[1749196088426,14.46649576,147.02,147.01,0.04511238]
[1749196089127,19.05816685,147.02,147.01,0.04511238]
[1749196089423,14.4653826,147.02,147.01,0.04511238]
[1749196089618,11.64716289,147.02,147.01,0.04511238]
[1749196089823,16.23406282,147.02,147.01,0.04511238]
[1749196090022,19.05218743,147.02,147.01,0.04511238]
[1749196090627,19.05242315,147.02,147.01,0.04511238]
[1749196091126,4.84846289,147.02,147.01,6.84421238]
[1749196091524,4.84846289,147.02,147.01,0.04511238]
[1749196092335,11.64716289,147.02,147.01,0.04511238]
[1749196092634,7.66608488,147.02,147.01,0.04511238]
[1749196092831,7.66612466,147.02,147.01,0.04511238]
[1749196093130,7.6719144,147.02,147.01,0.04511238]
[1749196093327,12.2559927,147.02,147.01,0.04511238]
[1749196093632,19.05517091,147.02,147.01,0.04511238]
[1749196094524,19.05418529,147.02,147.01,0.04511238]
[1749196094728,19.05412785,147.02,147.01,0.04511238]
[1749196095032,19.05425433,147.02,147.01,0.04511238]
[1749196095235,16.23641638,147.02,147.01,0.04511238]
[1749196095532,19.05290688,147.02,147.01,0.04511238]
[1749196095726,19.05305995,147.02,147.01,0.04511238]
[1749196095928,14.20459706,147.02,147.01,0.04511238]
[1749196096232,19.0475853,147.02,147.01,0.04511238]
[1749196096531,4.84846289,147.02,147.01,0.04511238]
[1749196096725,7.40024838,147.02,147.01,0.04511238]
[1749196096925,7.40096231,147.02,147.01,0.04511238]
[1749196097125,0.04684919,147.04,147.01,0.04511238]
[1749196097326,7.40188069,147.03,147.01,0.04511238]
[1749196097526,0.04684919,147.04,147.01,0.04511238]
[1749196097829,7.40212056,147.03,147.01,0.04511238]
[1749196098027,0.04684919,147.04,147.01,0.04511238]
[1749196098222,4.58522591,147.03,147.02,6.7987]
[1749196098420,7.39984495,147.03,147.02,6.7987]
[1749196098623,0.04684919,147.04,147.02,6.7987]
[1749196099533,2.8146059,147.03,147.02,6.7987]
[1749196099833,2.81462133,147.03,147.02,6.7987]
[1749196100032,0.04684919,147.04,147.03,6.7982]
[1749196100330,7.45438702,147.04,147.03,6.7982]
[1749196100531,0.04684919,147.04,147.03,6.7982]
[1749196100831,2.86247095,147.04,147.03,6.7982]
[1749196101635,2.86020244,147.04,147.03,6.7982]
[1749196101933,2.86028567,147.04,147.03,6.7982]
[1749196102134,2.86028594,147.04,147.03,6.7982]
[1749196102333,0.04684919,147.04,147.03,6.7982]
[1749196102632,2.8602951,147.04,147.03,6.7982]
[1749196102833,0.04684919,147.04,147.03,6.7982]
[1749196103336,7.72392823,147.04,147.02,6.7985]
[1749196103524,4.89531208,147.04,147.01,0.04511238]
[1749196103730,11.69331208,147.04,147.01,6.84401238]
[1749196104336,11.69331208,147.04,147.01,0.04511238]
[1749196104337,4.89531208,147.04,147.01,0.04511238]
[1749196105534,4.89531208,147.04,147.01,6.84401238]
[1749196106134,11.69351208,147.04,147.02,6.7986]
[1749196106334,4.89531208,147.04,147.02,6.7986]
[1749196107436,4.89531208,147.04,147.03,6.7982]
[1749196107631,4.89531208,147.04,147.01,0.04511238]
[1749196108031,4.89531208,147.04,147.02,6.7983]
[1749196108332,11.69311208,147.04,147.02,6.7983]
[1749196109436,4.89531208,147.04,147.02,6.7983]
[1749196110137,11.69311208,147.04,147.02,6.7983]
[1749196110437,4.89531208,147.04,147.02,6.7983]
[1749196110839,4.89531208,147.04,147.03,6.7982]
[1749196111139,0.04684919,147.04,147.03,6.7982]
[1749196114139,0.04684919,147.04,147.02,6.7984]
[1749196114336,0.04684919,147.04,147.01,0.04511238]
[1749196114939,0.04684919,147.04,147.03,6.7982]
[1749196120046,0.04684919,147.04,147.01,0.04511238]
[1749196120643,0.04684919,147.04,147.03,6.7982]
[1749196120842,34.18,147.09,147.02,4.84846289]
[1749196121041,34.18,147.09,147.02,13.28202005]
[1749196121736,40.9755,147.09,147.07,6.7962]
[1749196122141,41.01867281,147.09,147.07,6.7962]
[1749196124542,41.01867281,147.09,147.06,6.7966]
[1749196124747,41.01867281,147.09,147.04,0.05192206]
[1749196125047,34.22317281,147.09,147.04,0.05192206]
[1749196126249,41.01887281,147.09,147.04,0.05192206]
[1749196127453,41.01887281,147.09,147.06,6.7966]
[1749196127656,41.01887281,147.09,147.04,0.05192206]
[1749196128663,34.22317281,147.09,147.04,0.05192206]
[1749196129155,34.22317281,147.09,147.07,6.7961]
[1749196129556,0.04317281,147.09,147.08,6.7959]
[1749196130456,45.88146289,147.15,147.07,4.89996384]
[1749196130751,6.99776289,147.17,147.09,4.84846289]
[1749196130952,6.99776289,147.17,147.11,4.84846289]
[1749196131161,7.4674232,147.16,147.11,4.84846289]
[1749196131354,0.04861423,147.15,147.12,0.04964024]
[1749196131846,0.04861423,147.15,147.13,6.7933]
[1749196132249,0.04861423,147.15,147.12,0.04964024]
[1749196132958,0.04861423,147.15,147.14,6.7931]
[1749196135257,0.04861423,147.15,147.12,0.04964024]
[1749196135765,0.04861423,147.15,147.14,6.7931]
[1749196141862,0.04861423,147.15,147.12,0.04964024]
[1749196141863,0.04861423,147.15,147.13,6.7932]
[1749196142365,0.04861423,147.15,147.12,0.04964024]
[1749196142861,0.04861423,147.15,147.14,6.7931]
[1749196146163,0.04861423,147.15,147.12,0.04964024]
[1749196146370,4.84960289,147.13,147.12,0.04964024]
[1749196146868,6.7935,147.14,147.12,0.04964024]
[1749196147062,4.89821712,147.15,147.12,0.04964024]
[1749196147469,6.7936,147.13,147.12,0.04964024]
[1749196148061,11.64320289,147.13,147.12,0.04964024]
[1749196148463,6.7947,147.11,147.07,34.22]
[1749196149060,6.7947,147.11,147.08,6.7956]
[1749196149461,6.84523714,147.11,147.08,6.840824]
[1749196150065,6.84523714,147.11,147.08,0.045124]
[1749196150370,6.84523714,147.11,147.09,6.7952]
[1749196150966,0.05053714,147.11,147.09,6.7952]
[1749196151170,0.05053714,147.11,147.1,6.795]
[1749196156370,4.84960289,147.18,147.14,6.7929]
[1749196157371,34.27173681,147.17,147.14,6.84420389]
[1749196157676,39.1213397,147.17,147.14,6.84420389]
[1749196158374,6.7922,147.16,147.14,0.05130389]
[1749196159181,6.7927,147.15,147.14,0.05130389]
[1749196160580,6.7924,147.16,147.14,0.05130389]
[1749196163382,6.7927,147.15,147.14,0.05130389]
[1749196164179,11.64230289,147.15,147.14,0.05130389]
[1749196164780,6.7927,147.15,147.14,0.05130389]
[1749196165684,14.30949458,147.15,147.14,0.05130389]
[1749196165979,14.30949045,147.15,147.14,0.05130389]
[1749196166182,14.31288255,147.15,147.14,0.05130389]
[1749196166383,9.65112617,147.15,147.14,0.05130389]
[1749196166683,6.7927,147.15,147.14,0.05130389]
[1749196166878,11.45904277,147.15,147.14,0.05130389]
[1749196167078,14.31691638,147.15,147.14,0.05130389]
[1749196167379,14.31692438,147.15,147.14,0.05130389]
[1749196167586,9.65057545,147.15,147.14,0.05130389]
[1749196167882,9.65053873,147.15,147.14,0.05130389]
[1749196168084,14.31693465,147.15,147.14,0.05130389]